bitfinex/quotes_ETHUSD_20250110
["timestamp","ask_amount","ask_price","bid_price","bid_amount"]
[1736503600144,3.01932,3312.0,3311.6,0.62915334]
[1736503600288,3.01918,3312.2,3311.6,0.62915334]
[1736503600647,0.7738,3312.4,3311.6,0.62915334]
[1736503600792,1.51359201,3312.4,3311.6,0.62915334]
[1736503600991,3.01922,3312.2,3311.6,0.62915334]
[1736503601302,3.01922,3312.2,3311.2,0.31240649]
[1736503601484,1.51359201,3312.4,3311.7,0.07921142]
[1736503601685,3.01926,3312.1,3311.2,0.31240649]
[1736503601927,3.01926,3312.1,3311.8,0.07918438]
[1736503602103,3.321186,3312.1,3311.2,0.31240649]
[1736503602323,3.01926,3312.1,3311.9,0.07915734]
[1736503602634,3.01926,3312.1,3312.0,0.214]
[1736503604136,1.51359201,3312.4,3312.0,0.214]
[1736503604293,0.73979201,3312.4,3312.0,0.214]
[1736503604493,3.0189,3312.5,3312.0,0.214]
[1736503606621,3.84955,3312.9,3312.0,0.214]
[1736503606945,3.01853,3312.9,3312.1,0.55]
[1736503607133,3.49280332,3313.3,3312.3,0.55]
[1736503607343,3.01832,3313.1,3312.5,0.55]
[1736503607504,3.01832,3313.1,3312.7,0.55]
[1736503607687,4.28744,3313.3,3312.8,0.07879891]
[1736503608040,3.946884,3313.3,3312.9,0.214]
[1736503608207,3.946884,3313.3,3312.9,0.29277189]
[1736503608404,3.946884,3313.3,3312.9,0.214]
[1736503608813,3.51814,3313.3,3312.9,0.214]
[1736503609215,3.51814,3313.3,3313.0,0.07856966]
[1736503611201,3.51814,3313.3,3312.9,0.214]
[1736503613045,0.5,3313.3,3312.9,0.214]
[1736503613402,3.01833,3313.1,3312.9,0.214]
[1736503613597,3.01833,3313.1,3312.3,0.5575]
[1736503613804,3.01833,3313.1,3312.2,5.03979268]
[1736503613805,3.01833,3313.1,3312.5,0.55]
[1736503614243,3.01833,3313.1,3312.7,0.55]
[1736503614600,3.01833,3313.1,3312.8,0.07815818]
[1736503615021,3.01833,3313.1,3312.5,0.55]
[1736503615247,3.01833,3313.1,3312.9,0.07813115]
[1736503615466,3.01833,3313.1,3312.5,0.55]
[1736503615737,3.01833,3313.1,3312.7,0.55]
[1736503615936,3.01833,3313.1,3312.8,0.07815818]
[1736503616161,3.01833,3313.1,3312.5,0.55]
[1736503616335,3.01833,3313.1,3312.7,0.55]
[1736503616665,3.01833,3313.1,3312.8,0.07815818]
[1736503617059,3.01833,3313.1,3312.5,0.55]
[1736503617264,3.01833,3313.1,3312.9,0.07813115]
[1736503617422,3.01833,3313.1,3312.5,0.55]
[1736503617860,3.01833,3313.1,3312.7,0.55]
[1736503618172,3.51817,3313.3,3312.8,0.07815818]
[1736503618468,3.51817,3313.3,3312.5,0.55]
[1736503618617,3.51817,3313.3,3312.9,0.07802105]
[1736503618817,3.01824,3313.2,3312.5,0.55]
[1736503619263,3.01824,3313.2,3312.7,0.55]
[1736503619635,3.01824,3313.2,3312.8,0.07804807]
[1736503619850,3.01824,3313.2,3312.7,0.55]
[1736503620057,3.01824,3313.2,3312.5,0.55]
[1736503620638,3.01824,3313.2,3312.7,0.55]
[1736503620841,3.01824,3313.2,3312.8,0.07804807]
[1736503621103,0.5,3313.3,3312.7,0.55]
[1736503621237,0.5,3313.3,3312.5,0.55]
[1736503621440,3.51815,3313.3,3312.5,0.55]
[1736503621769,3.51815,3313.3,3312.7,0.55]
[1736503621937,3.51815,3313.3,3312.8,0.07804807]
[1736503622139,3.51815,3313.3,3312.5,0.55]
[1736503622454,0.5,3313.3,3312.7,0.55]
[1736503622789,3.01823,3313.2,3312.8,0.07804807]
[1736503623294,3.01823,3313.2,3312.5,0.55]
[1736503623671,0.5,3313.3,3312.6,0.07810212]
[1736503623877,0.5,3313.3,3312.8,5.04729268]
[1736503624050,0.5,3313.3,3312.9,0.55]
[1736503624393,0.5,3313.3,3312.9,0.62802105]
[1736503625359,0.5,3313.3,3313.0,0.0075]
[1736503625802,0.5,3313.3,3313.2,0.55]
[1736503626163,0.5,3313.3,3313.2,0.62734957]
[1736503629324,0.5,3313.3,3313.2,0.84034957]
[1736503629543,3.51813,3313.3,3313.2,0.84034957]
[1736503629749,3.51813,3313.3,3313.2,0.763]
[1736503631468,0.5,3313.3,3313.2,0.763]
[1736503632837,0.5,3313.3,3313.2,0.84034957]
[1736503634418,0.5,3313.3,3312.8,5.03979268]
[1736503634735,3.01833,3313.1,3312.9,0.29043063]
[1736503636350,0.5,3313.3,3312.9,0.29043063]
[1736503636553,3.5182,3313.3,3312.9,0.29043063]
[1736503639053,3.87002,3313.3,3312.9,0.29043063]
[1736503642438,3.01833,3313.1,3312.9,0.29043063]
[1736503643946,3.01841,3313.0,3312.9,0.07743063]
[1736503644253,3.77641,3313.0,3312.9,0.213]
[1736503644455,4.154051,3313.0,3312.9,0.213]
[1736503646361,6.09351332,3313.3,3312.9,0.213]
[1736503646362,1.65962,3313.3,3312.9,0.213]
[1736503646777,3.86998,3313.3,3313.0,0.07516459]
[1736503647085,3.01826,3313.2,3312.9,0.213]
[1736503647666,0.7987,3313.0,3312.9,0.213]
[1736503648032,3.81711,3313.0,3312.9,0.213]
[1736503648377,4.198821,3313.0,3312.9,0.213]
[1736503656940,0.5,3313.3,3312.9,0.213]
[1736503657242,3.51814,3313.3,3313.0,0.07291455]
[1736503657620,0.5,3313.3,3313.0,0.07291455]
[1736503657825,3.01832,3313.1,3313.0,0.07291455]
[1736503658212,3.01832,3313.1,3312.9,0.213]
[1736503658538,3.51817,3313.3,3312.9,0.213]
[1736503658723,3.01824,3313.2,3312.9,0.213]
[1736503659130,3.5182,3313.3,3312.9,0.213]
[1736503659327,3.5182,3313.3,3313.0,0.07278964]
[1736503662430,0.5,3313.3,3313.1,0.55]
[1736503662815,0.5,3313.3,3313.2,0.62273561]
[1736503680357,0.5,3313.3,3313.2,0.83573561]
[1736503680690,3.51813,3313.3,3313.2,0.28573561]
[1736503680897,3.951353,3313.3,3313.2,0.28573561]
[1736503681049,3.951353,3313.3,3313.2,0.213]
[1736503681790,0.8296,3313.2,3312.0,5.03979268]
[1736503681996,0.7814,3313.1,3312.1,0.07255329]
[1736503682288,3.01858,3312.9,3312.1,0.28555329]
[1736503682494,3.79972,3313.1,3312.1,0.28555329]
[1736503682695,3.01857,3312.9,3312.2,0.55]
[1736503682990,0.8319,3312.9,3312.4,0.55]
[1736503683150,3.01868,3312.8,3312.5,0.213]
[1736503683350,3.01885,3312.6,3312.0,5.03979268]
[1736503683658,0.8319,3312.9,3312.6,0.213]
[1736503683864,0.7787,3312.7,3312.6,0.213]
[1736503684197,3.79738,3312.7,3312.6,0.213]
[1736503686804,0.7787,3312.7,3311.6,7.232]
[1736503686983,3.01892,3312.5,3311.7,0.28577135]
[1736503687188,3.01912,3312.3,3311.8,0.55]
[1736503687369,3.01914,3312.2,3311.9,0.07320513]
[1736503687608,0.7686,3312.1,3311.7,0.213]
[1736503687897,3.01942,3311.9,3311.8,0.07323217]
[1736503688052,3.01942,3311.9,3311.8,0.28623217]
[1736503688384,3.62057233,3311.9,3311.8,0.213]
[1736503689152,0.7686,3312.1,3311.8,0.213]
[1736503689361,0.7896,3312.3,3311.8,0.213]
[1736503689586,0.7896,3312.3,3311.9,0.07333007]
[1736503689788,0.7896,3312.5,3312.0,0.55]
[1736503689992,0.61236212,3312.7,3312.1,0.07327599]
[1736503689993,3.63104212,3312.7,3312.1,0.07327599]
[1736503690159,3.80828,3312.7,3312.1,0.07327599]
[1736503690503,3.80828,3312.7,3311.9,0.55]
[1736503690705,3.80828,3312.7,3312.2,0.07340391]
[1736503691011,0.44536655,3312.6,3312.3,0.07337688]
[1736503691303,0.44536655,3312.6,3311.9,0.55]
[1736503691605,3.80828,3312.7,3311.9,0.55]
[1736503691803,3.80828,3312.7,3312.0,0.07345799]
[1736503693802,0.7896,3312.7,3312.0,0.07345799]
[1736503693983,3.01901,3312.4,3311.8,0.213]
[1736503694187,3.01901,3312.4,3312.1,0.07331098]
[1736503694392,3.01901,3312.4,3311.9,0.55]
[1736503694592,3.0188,3312.6,3312.2,0.07328395]
[1736503694790,0.38084,3312.5,3311.9,0.55]
[1736503695004,0.38084,3312.5,3312.0,0.07333802]
[1736503695511,3.01893,3312.5,3312.0,0.07333802]
[1736503697772,0.7896,3312.7,3312.0,0.07333802]
[1736503698001,3.01844,3313.0,3312.1,0.55]
[1736503698201,3.01844,3313.0,3312.1,0.58018884]
[1736503698407,0.8055,3313.1,3312.1,0.65359979]
[1736503698586,0.8055,3313.1,3312.1,3.67279979]
[1736503698922,3.01842,3313.0,3312.1,0.62341093]
[1736503699277,3.8055,3313.1,3312.1,0.62341093]
[1736503699482,3.01851,3312.9,3312.1,0.62341093]
[1736503699885,7.79139,3313.1,3312.1,0.62341093]
[1736503701515,4.77305,3313.1,3312.1,0.62341093]
[1736503701811,3.01845,3313.0,3312.1,0.62341093]
[1736503702413,4.77305,3313.1,3312.1,0.62341093]
[1736503702586,3.01851,3312.9,3312.1,0.62341093]
[1736503703116,1.014305,3313.0,3312.1,0.07341093]
[1736503703516,3.01897,3312.4,3312.0,0.55]
[1736503703824,3.01897,3312.4,3312.1,0.07341093]
[1736503704323,0.8006,3312.6,3312.1,0.07341093]
[1736503704621,3.8194,3312.6,3312.1,0.07341093]
[1736503706008,3.01889,3312.5,3312.2,0.213]
[1736503706220,3.01896,3312.4,3312.2,0.28638389]
[1736503707693,4.20136,3312.6,3312.2,0.28638389]
[1736503709345,3.81942,3312.6,3312.2,0.28638389]
[1736503710392,0.7719,3312.9,3312.2,0.28638389]
[1736503710712,5.37,3313.1,3312.2,0.28638389]
[1736503710713,3.01836,3313.1,3312.3,0.55]
[1736503710940,3.01828,3313.2,3312.3,0.55]
[1736503711139,3.01828,3313.2,3312.5,0.55]
[1736503711662,3.01828,3313.2,3312.6,0.07324578]
[1736503711836,2.97828025,3313.2,3312.6,0.07324578]
[1736503712146,3.01839,3313.1,3312.6,0.07324578]
[1736503713796,3.51814,3313.3,3312.7,0.55]
[1736503714040,0.5,3313.3,3312.9,0.55]
[1736503714247,0.5,3313.3,3313.0,0.07300775]
[1736503714426,0.5,3313.3,3313.1,0.213]
[1736503714633,0.5,3313.3,3313.2,0.07295371]
[1736503715224,0.5,3313.3,3313.2,0.62295371]
[1736503726207,0.5,3313.3,3313.2,0.63045371]
[1736503728498,0.5,3313.3,3313.2,3.67886217]
[1736503729854,0.5,3313.3,3313.2,8.68847639]
[1736503733206,0.5,3313.3,3313.2,5.67024639]
[1736503742040,0.5,3313.3,3313.2,0.83595371]
[1736503742767,0.5,3313.3,3313.2,0.28595371]
[1736503744586,4.34403,3313.3,3313.2,0.07295371]
[1736503744738,5.00078333,3313.3,3313.2,0.07295371]
[1736503744943,3.01841,3313.0,3312.9,0.213]
[1736503745152,3.80521,3313.0,3312.9,0.213]
[1736503745353,3.80521,3313.0,3312.9,0.28512545]
[1736503748282,3.80521,3313.0,3312.9,0.213]
[1736503748487,4.722731,3313.0,3312.9,0.213]
[1736503756859,3.80521,3313.0,3312.9,0.213]
[1736503757061,3.01841,3313.0,3312.9,0.213]
[1736503759412,8.38824,3313.2,3312.9,0.213]
[1736503759766,3.01824,3313.2,3312.9,0.213]
[1736503760165,3.01837,3313.1,3312.9,0.213]
[1736503760612,4.27916,3313.3,3312.9,0.213]
[1736503761108,4.27916,3313.3,3313.0,0.62251807]
[1736503761109,1.261,3313.3,3313.0,0.62251807]
[1736503761610,0.5,3313.3,3313.0,0.62251807]
[1736503763351,0.927858,3313.3,3313.0,0.07251807]
[1736503763555,3.01824,3313.2,3313.1,0.213]
[1736503764939,0.5,3313.3,3313.1,0.213]
[1736503765641,3.51814,3313.3,3313.1,0.213]
[1736503766694,3.51814,3313.3,3313.2,0.07249398]
[1736503766880,3.51814,3313.3,3313.1,0.213]
[1736503767085,0.764,3313.2,3313.1,0.213]
[1736503767248,3.78223,3313.2,3313.1,0.213]
[1736503767578,4.210453,3313.2,3313.1,0.213]
[1736503768677,3.0185,3313.0,3312.0,3.01929]
[1736503768835,3.0185,3313.0,3312.2,0.55]
[1736503769031,3.0185,3313.0,3312.3,0.07276718]
[1736503769380,3.0185,3313.0,3312.4,0.55]
[1736503769596,3.78231,3313.2,3312.4,0.55]
[1736503769749,3.78231,3313.2,3312.6,0.55]
[1736503770068,3.78231,3313.2,3312.8,0.55]
[1736503770273,3.78231,3313.2,3312.9,0.07266497]
[1736503770524,3.78231,3313.2,3313.0,0.213]
[1736503770677,3.78231,3313.2,3313.1,0.07258595]
[1736503770977,3.78231,3313.2,3313.0,0.213]
[1736503771334,3.78231,3313.2,3313.1,0.07258595]
[1736503771745,3.78231,3313.2,3313.0,0.213]
[1736503772251,3.78231,3313.2,3313.1,0.07258595]
[1736503772449,3.78231,3313.2,3313.0,0.213]
[1736503772787,3.78231,3313.2,3313.1,0.07255097]
[1736503773089,3.78231,3313.2,3313.0,0.213]
[1736503773389,3.78231,3313.2,3313.1,0.07254598]
[1736503773885,3.78231,3313.2,3313.0,0.213]
[1736503774058,3.78231,3313.2,3313.1,0.07254598]
[1736503774390,3.78231,3313.2,3313.0,0.213]
[1736503774747,3.78231,3313.2,3313.1,0.07254598]
[1736503775045,3.78231,3313.2,3313.0,0.213]
[1736503775274,3.78231,3313.2,3313.1,0.07254598]
[1736503775597,3.78231,3313.2,3313.0,0.213]
[1736503775981,3.78231,3313.2,3313.1,0.07254598]
[1736503776291,3.78231,3313.2,3313.0,0.213]
[1736503776483,3.78231,3313.2,3313.1,0.07254598]
[1736503776682,3.78231,3313.2,3313.0,0.213]
[1736503776847,3.78231,3313.2,3313.1,0.07254598]
[1736503777048,3.78231,3313.2,3313.0,0.213]
[1736503777395,3.78231,3313.2,3313.1,0.07254598]
[1736503777895,3.78231,3313.2,3313.0,0.213]
[1736503778077,3.78231,3313.2,3313.1,0.07249601]
[1736503778282,0.5,3313.3,3313.0,0.213]
[1736503778484,0.5,3313.3,3313.1,0.07249601]
[1736503779156,3.76863,3313.2,3313.1,0.07249601]
[1736503779990,3.01832,3313.1,3313.0,0.213]
[1736503780347,3.01832,3313.1,3313.0,0.28542811]
[1736503780852,3.80102,3313.1,3313.0,0.28542811]
[1736503781158,3.80102,3313.1,3313.0,0.213]
[1736503802280,3.01832,3313.1,3313.0,0.213]
[1736503805436,3.01824,3313.2,3313.0,0.213]
[1736503808217,3.80852,3313.1,3313.0,0.213]
[1736503810011,3.01832,3313.1,3313.0,0.213]
[1736503811305,3.51817,3313.3,3313.0,0.213]
[1736503812345,3.01823,3313.2,3313.0,0.213]
[1736503816583,0.5,3313.3,3313.1,0.55]
[1736503816926,0.5,3313.3,3313.2,0.06926972]
[1736503817369,0.5,3313.3,3313.2,0.61926972]
[1736503817935,0.5,3313.3,3313.2,0.62676972]
[1736503818261,0.5,3313.3,3313.2,3.64499972]
[1736503820554,0.5,3313.3,3313.2,0.62676972]
[1736503822380,0.5,3313.3,3313.2,3.65249972]
[1736503822683,0.5,3313.3,3313.2,11.6997924]
[1736503828187,0.5,3313.3,3313.2,11.6847924]
[1736503831693,0.5,3313.3,3313.2,11.6922924]
[1736503832466,0.5,3313.3,3313.2,11.72312233]
[1736503833189,0.5,3313.3,3313.2,8.69739233]
[1736503833504,0.5,3313.3,3313.2,9.7483066]
[1736503834254,0.5,3313.3,3313.2,8.91039233]
[1736503834646,0.5,3313.3,3313.2,9.9613066]
[1736503840147,0.5,3313.3,3313.2,12.9795366]
[1736503843422,0.5,3313.3,3313.2,12.7665366]
[1736503843642,0.5,3313.3,3313.2,12.9795366]
[1736503848463,0.5,3313.3,3313.2,6.9613066]
[1736503848958,0.5,3313.3,3313.2,9.9795366]
[1736503849820,0.5,3313.3,3313.2,12.9795366]
[1736503851162,0.5,3313.3,3313.2,12.9945366]
[1736503856365,0.5,3313.3,3313.2,13.61119067]
[1736503860367,0.5,3313.3,3313.2,13.60369067]
[1736503876398,0.5,3313.3,3313.2,6.5270464]
[1736503876599,1.3107,3313.3,3313.2,0.10009965]
[1736503876800,1.3107,3313.3,3313.2,0.213]
[1736503876801,1.54686143,3313.3,3313.2,0.213]
[1736503876958,1.54686143,3313.3,3312.9,5.03979268]
[1736503877158,0.73616143,3313.3,3313.0,0.213]
[1736503877362,0.8107,3313.2,3313.1,0.09340652]
[1736503877662,3.82893,3313.2,3313.1,0.64340652]
[1736503877862,4.28543914,3313.2,3313.1,0.09340652]
[1736503878096,4.28543914,3313.2,3313.1,0.64340652]
[1736503878503,4.28543914,3313.2,3313.1,0.09340652]
[1736503878801,1.26720914,3313.2,3313.1,0.09340652]
[1736503878985,0.8107,3313.2,3313.1,0.64340652]
[1736503879858,0.8107,3313.2,3313.1,0.85640652]
[1736503886765,0.8107,3313.2,3313.1,0.30640652]
[1736503886971,0.8107,3313.2,3313.1,0.09340652]
[1736503887199,4.06509143,3313.2,3313.1,0.213]
[1736503887413,4.06509143,3313.2,3313.1,0.30694905]
[1736503889407,1.04686143,3313.2,3313.1,0.30694905]
[1736503889609,0.8107,3313.2,3313.1,0.30694905]
[1736503895328,3.82893,3313.2,3313.1,0.30694905]
[1736503896821,4.87984427,3313.2,3313.1,0.30694905]
[1736503897043,4.87984427,3313.2,3313.1,0.213]
[1736503897317,0.7883,3313.1,3312.2,5.03979268]
[1736503897537,0.7883,3312.8,3312.3,0.213]
[1736503897686,0.7883,3312.8,3312.4,0.55]
[1736503898090,0.7883,3312.8,3312.6,0.55]
[1736503898506,0.7883,3312.8,3312.7,0.0942701]
[1736503898691,0.7883,3312.8,3312.7,0.3072701]
[1736503899099,0.7883,3313.2,3312.7,0.3072701]
[1736503899722,0.7883,3313.1,3312.7,0.3072701]
[1736503900026,3.80666,3313.1,3312.7,0.3072701]
[1736503900698,0.7883,3313.1,3312.7,0.3072701]
[1736503901829,3.80663,3313.1,3312.8,0.213]
[1736503902126,3.80663,3313.1,3312.9,0.09435352]
[1736503902526,3.80663,3313.1,3312.8,0.213]
[1736503902914,3.80663,3313.1,3312.9,0.09435352]
[1736503903333,3.80663,3313.1,3312.8,0.213]
[1736503903638,3.80663,3313.1,3312.9,0.09435352]
[1736503903934,3.80663,3313.1,3312.8,0.213]
[1736503904308,3.80663,3313.1,3312.9,0.09435352]
[1736503904728,3.80663,3313.1,3312.8,0.213]
[1736503905097,3.80663,3313.1,3312.9,0.09435352]
[1736503905525,3.80663,3313.1,3312.8,0.213]
[1736503905899,3.80663,3313.1,3312.9,0.09435352]
[1736503906398,3.80663,3313.1,3312.8,0.213]
[1736503906599,3.80663,3313.1,3312.9,0.09435352]
[1736503906799,3.80663,3313.1,3312.8,0.213]
[1736503907149,3.80663,3313.1,3312.9,0.09435352]
[1736503907432,3.80663,3313.1,3312.8,0.213]
[1736503907633,3.80663,3313.1,3312.9,0.09435352]
[1736503907936,3.80663,3313.1,3312.8,0.213]
[1736503908423,3.80663,3313.1,3312.9,0.09435352]
[1736503908731,3.80663,3313.1,3312.8,0.213]
[1736503909111,3.80663,3313.1,3312.9,0.09435352]
[1736503909507,3.80663,3313.1,3312.8,0.213]
[1736503910051,3.80663,3313.1,3312.9,0.09435352]
[1736503910416,3.80663,3313.1,3312.8,0.213]
[1736503910617,3.80663,3313.1,3312.9,0.09435352]
[1736503910858,3.80663,3313.1,3312.8,0.213]
[1736503911416,3.80663,3313.1,3312.9,0.09435352]
[1736503911618,3.80663,3313.1,3312.8,0.213]
[1736503911971,3.80663,3313.1,3312.9,0.09435352]
[1736503912463,3.80663,3313.1,3312.8,0.213]
[1736503912917,3.80663,3313.1,3312.9,0.09435352]
[1736503913418,3.80663,3313.1,3312.8,0.213]
[1736503913620,3.80663,3313.1,3312.9,0.09435352]
[1736503913862,3.80663,3313.1,3312.8,0.213]
[1736503914220,3.80663,3313.1,3312.9,0.09435352]
[1736503914423,0.7883,3313.1,3312.8,0.213]
[1736503914627,0.7883,3313.1,3312.9,0.09435352]
[1736503914919,0.7883,3313.1,3312.8,0.213]
[1736503915265,0.7883,3313.1,3312.9,0.09435352]
[1736503915772,0.7883,3313.1,3312.8,0.213]
[1736503916081,0.7883,3313.1,3312.9,0.09437342]
[1736503916377,0.5,3313.3,3313.0,0.55]
[1736503916533,0.5,3313.3,3312.9,0.58018186]
[1736503916735,0.5,3313.3,3313.2,0.55]
[1736503916935,0.5,3313.3,3313.0,0.09424088]
[1736503917271,0.5,3313.3,3313.2,0.55]
[1736503917617,0.5,3313.3,3313.2,0.64418491]
[1736503929389,0.5,3313.3,3313.2,1.70259918]
[1736503929549,0.5,3313.3,3313.2,4.72082918]
[1736503930207,0.5,3313.3,3313.2,0.65168491]
[1736503930499,0.5,3313.3,3313.2,0.64418491]
[1736503932243,0.5,3313.3,3313.2,0.65168491]
[1736503932503,0.5,3313.3,3313.2,1.70259918]
[1736503937732,0.5,3313.3,3313.2,0.65168491]
[1736503939440,0.5,3313.3,3313.2,6.74239186]
[1736503941014,0.5,3313.3,3313.2,9.76812186]
[1736503946770,0.5,3313.3,3313.2,6.74989186]
[1736503948952,0.5,3313.3,3313.2,5.69897759]
[1736503949363,0.5,3313.3,3313.2,5.13397759]
[1736503949689,0.5,3313.3,3313.2,5.34597759]
[1736503949855,0.5,3313.3,3313.2,5.89597759]
[1736503951489,0.5,3313.3,3313.2,0.85618491]
[1736503951706,1.2828,3313.3,3313.2,0.85618491]
[1736503951855,4.731005,3313.3,3313.2,0.09418491]
[1736503952060,4.731005,3313.3,3313.2,0.212]
[1736503952258,0.774,3312.9,3312.8,5.03979268]
[1736503952455,3.7925,3312.9,3312.8,0.3059882]
[1736503952709,3.7925,3312.9,3312.8,0.212]
[1736503952874,4.27684143,3312.9,3312.8,0.212]
[1736503953072,3.01882,3312.6,3311.8,13.08701471]
[1736503953296,0.8116,3312.7,3311.9,0.09445424]
[1736503953297,3.01888,3312.5,3311.9,0.09445424]
[1736503953463,0.8116,3312.4,3311.9,0.30645424]
[1736503954596,0.8116,3312.4,3312.0,0.55]
[1736503954885,0.8116,3312.4,3312.2,0.55]
[1736503955298,0.8116,3312.4,3312.3,0.09461617]
[1736503960412,0.8116,3312.4,3312.3,0.64461617]
[1736503961314,0.8116,3312.4,3312.3,0.85661617]
[1736503964153,4.88146427,3312.4,3312.3,0.09461617]
[1736503964450,5.3696107,3312.4,3312.3,0.30661617]
[1736503964654,5.3696107,3312.4,3312.3,0.212]
[1736503964830,5.3696107,3312.4,3312.3,0.09193785]
[1736503965199,3.81234,3312.2,3312.1,0.212]
[1736503965854,4.86325427,3312.2,3312.1,0.212]
[1736503965995,1.63023507,3312.2,3312.1,0.212]
[1736503966195,0.7628,3312.6,3312.1,0.762]
[1736503966510,0.7628,3312.6,3312.2,0.55]
[1736503966663,3.78157,3312.6,3312.2,0.55]
[1736503966870,3.78157,3312.6,3312.1,0.212]
[1736503969168,3.78157,3312.6,3312.3,0.55]
[1736503969656,3.78157,3312.6,3312.1,0.212]
[1736503970120,3.78157,3312.6,3312.3,0.55]
[1736503970690,3.78157,3312.6,3312.4,0.09219827]
[1736503970866,3.01886,3312.5,3312.1,0.212]
[1736503971251,3.01899,3312.4,3312.2,0.09225426]
[1736503973651,3.83935,3312.3,3312.2,0.09225426]
[1736503974010,3.83935,3312.3,3312.2,0.212]
[1736503974139,3.83935,3312.3,3312.2,0.30425426]
[1736503974344,4.223285,3312.3,3312.2,0.30425426]
[1736503975998,4.223285,3312.3,3312.2,0.212]
[1736503988985,3.01944,3311.9,3311.1,5.03979268]
[1736503989172,3.01944,3311.9,3311.2,0.212]
[1736503989375,3.01944,3311.9,3311.3,0.55]
[1736503989681,3.01944,3311.9,3311.5,0.55]
[1736503989872,3.01944,3311.9,3311.6,0.08970698]
[1736503993487,3.01944,3311.9,3311.3,0.55]
[1736503993739,3.01944,3311.9,3311.5,0.55]
[1736503994290,3.01944,3311.9,3311.6,0.30170698]
[1736503994517,4.223365,3312.3,3311.6,0.30170698]
[1736503994839,3.01953,3311.8,3311.6,0.212]
[1736503998222,0.756,3311.9,3311.6,0.212]
[1736503998496,0.756,3311.9,3311.7,0.08967898]
[1736503998698,0.756,3311.9,3311.6,0.212]
[1736503999038,0.756,3311.9,3311.7,0.08967898]
[1736503999440,0.756,3311.9,3311.6,0.212]
[1736503999742,0.756,3311.9,3311.7,0.08967898]
[1736504000110,3.01936,3312.0,3311.6,0.212]
[1736504000294,3.01936,3312.0,3311.7,0.08967898]
[1736504000496,3.01936,3312.0,3311.6,0.212]
[1736504000758,3.01936,3312.0,3311.7,0.08967898]
[1736504001054,3.83454,3312.7,3311.8,0.55]
[1736504001194,3.83454,3312.7,3311.9,0.03019114]
[1736504001395,3.83454,3312.7,3312.0,0.55]
[1736504001795,3.83454,3312.7,3312.1,0.08944762]
[1736504002840,3.01874,3312.7,3312.2,0.55]
[1736504003250,3.01874,3312.7,3312.3,0.08914797]
[1736504003711,0.7546,3312.9,3312.3,0.08914797]
[1736504003712,3.77313,3312.9,3312.3,0.08914797]
[1736504005002,8.3886,3312.8,3312.3,0.08914797]
[1736504005202,8.3886,3312.8,3312.0,0.5575]
[1736504005442,3.0186,3312.8,3312.0,0.5575]
[1736504005759,3.0186,3312.8,3312.2,0.55]
[1736504005901,0.7546,3312.9,3312.2,0.55]
[1736504006222,3.01845,3313.0,3312.3,0.08910323]
[1736504007252,3.01852,3312.9,3312.3,0.08910323]
[1736504008354,3.80444,3313.1,3312.4,0.55]
[1736504008515,3.80444,3313.1,3312.6,0.55]
[1736504008920,3.80444,3313.1,3312.7,0.08887692]
[1736504008921,3.01834,3313.1,3312.7,0.08887692]
[1736504011282,0.5,3313.3,3312.7,0.08887692]
[1736504011429,0.5,3313.3,3312.8,0.55]
[1736504011751,0.5,3313.3,3312.6,0.55]
[1736504011955,0.5,3313.3,3312.6,0.58018407]
[1736504012101,0.5,3313.3,3312.8,0.55]
[1736504012302,0.5,3313.3,3312.9,0.08882095]
[1736504012548,0.5,3313.3,3312.6,0.58018407]
[1736504012719,0.5,3313.3,3312.6,0.55]
[1736504013041,3.51815,3313.3,3312.8,0.55]
[1736504013432,3.51815,3313.3,3312.9,0.08825915]
[1736504013755,0.5,3313.3,3312.8,0.55]
[1736504013964,0.5,3313.3,3313.0,0.08805224]
[1736504014346,0.5,3313.3,3312.7,3.60628284]
[1736504014510,0.5,3313.3,3312.9,0.0075]
[1736504014712,0.5,3313.3,3313.0,0.08802739]
[1736504019287,0.5,3313.3,3313.1,0.0075]
[1736504019432,0.5,3313.3,3313.2,6.59073]
[1736504019764,0.5,3313.3,3313.2,6.67869149]
[1736504020714,0.5,3313.3,3313.2,6.66369149]
[1736504021962,0.5,3313.3,3313.2,0.64546149]
[1736504023362,0.5,3313.3,3313.2,8.68525417]
[1736504024062,0.5,3313.3,3313.2,5.68525417]
[1736504024417,0.5,3313.3,3313.2,5.12775417]
[1736504025259,0.5,3313.3,3313.2,5.88975417]
[1736504027140,0.5,3313.3,3313.2,5.89725417]
[1736504029645,0.5,3313.3,3313.2,8.91548417]
[1736504031385,0.5,3313.3,3313.2,8.93048417]
[1736504041588,0.5,3313.3,3313.2,11.93048417]
[1736504041779,0.5,3313.3,3313.2,12.98123694]
[1736504049720,0.5,3313.3,3313.2,11.93048417]
[1736504050073,0.5,3313.3,3313.2,12.98123694]
[1736504050650,0.5,3313.3,3313.2,5.68525417]
[1736504050856,0.5,3313.3,3313.2,5.89725417]
[1736504069641,1.3135,3313.3,3313.2,5.89725417]
[1736504070797,1.3135,3313.3,3313.2,5.33975417]
[1736504073273,1.3135,3313.3,3313.2,0.29996149]
[1736504073474,4.33163,3313.3,3313.2,0.08796149]
[1736504073680,4.764793,3313.3,3313.2,0.29996149]
[1736504073875,4.764793,3313.3,3313.2,0.212]
[1736504074065,4.764793,3313.3,3313.2,0.29711256]
[1736504077090,4.764793,3313.3,3313.2,0.08511256]